bitfinex/quotes_BTCUSD_20220731
["timestamp","ask_amount","ask_price","bid_price","bid_amount"]
[1659292370338,0.30444,23432.0,23426.0,0.40725733]
[1659292370567,0.012785,23438.0,23427.0,0.30444]
[1659292370807,0.43240714,23436.0,23427.0,0.40725733]
[1659292371036,0.71169733,23435.0,23428.0,0.037215]
[1659292371262,0.41400293,23441.0,23431.0,0.037215]
[1659292371493,0.68047054,23445.0,23439.0,0.037215]
[1659292371716,0.25,23445.0,23440.0,0.44447233]
[1659292371931,0.25,23445.0,23439.0,0.40605974]
[1659292372190,0.25,23445.0,23440.0,0.40725733]
[1659292372424,0.25,23445.0,23441.0,0.30444]
[1659292372662,0.25,23445.0,23443.0,0.42798005]
[1659292372914,0.012785,23459.0,23457.0,0.21717862]
[1659292373162,0.012785,23459.0,23444.0,1.89891233]
[1659292373163,0.07127053,23445.0,23444.0,1.59447233]
[1659292373406,0.07127053,23445.0,23444.0,5e-06]
[1659292373407,1.42929454,23445.0,23444.0,5e-06]
[1659292373647,0.10312576,23443.0,23436.0,0.42798005]
[1659292373904,0.76141933,23442.0,23435.0,0.1]
[1659292374133,0.40725733,23436.0,23434.0,0.044]
[1659292374369,0.40725733,23423.0,23405.0,0.0022]
[1659292374599,2.26134509,23435.0,23414.0,0.1]
[1659292374600,0.05,23417.0,23414.0,0.1]
[1659292374834,0.304162,23416.0,23414.0,0.1]
[1659292375063,0.304162,23416.0,23409.0,0.1]
[1659292375289,0.05,23420.0,23409.0,0.1]
[1659292375524,0.0559891,23417.0,23409.0,0.05852]
[1659292375782,0.304162,23419.0,23409.0,0.05852]
[1659292376045,0.046,23426.0,23411.0,0.40725733]
[1659292376270,0.046,23426.0,23415.0,0.40725733]
[1659292376271,0.45325733,23426.0,23415.0,0.40725733]
[1659292376506,0.40725733,23425.0,23415.0,0.40725733]
[1659292376735,0.05,23434.0,23419.0,0.1]
[1659292376958,0.34255733,23433.0,23420.0,1.01620917]
[1659292377183,0.40725733,23431.0,23421.0,0.67888933]
[1659292377436,0.40725733,23435.0,23425.0,0.1]
[1659292377689,0.71141933,23434.0,23422.0,0.40725733]
[1659292377933,0.71141933,23434.0,23410.0,0.25]
[1659292377934,0.40725733,23433.0,23427.0,0.1]
[1659292378144,0.40725733,23437.0,23427.0,0.50725733]
[1659292378379,0.40725733,23437.0,23428.0,0.40725733]
[1659292378650,0.1358967,23443.0,23434.0,0.40725733]
[1659292378886,0.08327863,23445.0,23418.0,0.4421]
[1659292378887,0.07927593,23445.0,23438.0,0.40725733]
[1659292379123,0.45791301,23450.0,23449.0,0.84463377]
[1659292379354,0.45791301,23450.0,23449.0,0.49379577]
[1659292379583,0.31708492,23454.0,23450.0,0.85]
[1659292379802,0.31708492,23454.0,23451.0,0.27085]
[1659292380253,0.0735273,23456.0,23452.0,1.0]
[1659292380488,0.04835731,23467.0,23453.0,1.06092086]
[1659292380723,0.001,23468.0,23464.0,1.22798005]
[1659292380963,0.07215788,23469.0,23467.0,0.42798005]
[1659292381221,0.07215788,23469.0,23465.0,0.1]
[1659292381222,0.59093135,23469.0,23465.0,0.1]
[1659292381453,0.05,23466.0,23465.0,0.1]
[1659292381686,0.40725733,23466.0,23460.0,0.42798005]
[1659292381923,0.71130433,23465.0,23460.0,0.1]
[1659292382163,0.71130433,23465.0,23450.0,0.25]
[1659292382164,0.40725733,23462.0,23456.0,0.42798005]
[1659292382407,0.40725733,23462.0,23445.0,0.3117]
[1659292382408,0.39725733,23462.0,23457.0,0.42798005]
[1659292382638,0.05,23463.0,23461.0,0.85]
[1659292382639,0.40725733,23463.0,23461.0,0.85]
[1659292382874,0.18367402,23469.0,23461.0,0.85]
[1659292382875,0.18367402,23469.0,23462.0,0.270726]
[1659292383115,0.07215788,23469.0,23462.0,0.40725733]
[1659292383355,0.47941521,23469.0,23463.0,0.570701]
[1659292383597,0.71130433,23468.0,23462.0,0.35]
[1659292383840,0.71130433,23468.0,23465.0,0.42798005]
[1659292383841,0.40725733,23468.0,23465.0,0.42798005]
[1659292384077,0.40725733,23468.0,23462.0,0.35]
[1659292384078,0.40725733,23468.0,23466.0,0.270666]
[1659292384327,0.40725733,23468.0,23464.0,0.1]
[1659292384328,0.49649925,23467.0,23464.0,0.1]
[1659292384583,0.05,23462.0,23460.0,0.5]
[1659292384814,0.71130433,23466.0,23460.0,0.49]
[1659292384815,0.304047,23461.0,23460.0,0.49]
[1659292385080,0.07215788,23469.0,23461.0,0.57378733]
[1659292385305,0.07215788,23469.0,23462.0,0.40725733]
[1659292385540,0.07215788,23469.0,23468.0,0.42798005]
[1659292385775,0.001,23475.0,23469.0,0.07214]
[1659292386007,0.001,23475.0,23470.0,0.40725733]
[1659292386239,0.001,23475.0,23471.0,0.45058462]
[1659292386468,0.001,23475.0,23472.0,0.40725733]
[1659292386706,2.38813956,23480.0,23471.0,0.10058462]
[1659292386951,2.38813956,23480.0,23473.0,0.35]
[1659292386952,0.71130433,23479.0,23473.0,0.35]
[1659292387186,1.92952025,23480.0,23473.0,0.35]
[1659292387187,0.40725733,23478.0,23477.0,0.1]
[1659292387696,0.001,23481.0,23480.0,0.05]
[1659292387927,0.001,23490.0,23487.0,0.05]
[1659292388160,0.07201995,23496.0,23484.0,0.1]
[1659292388161,0.0621045,23494.0,23484.0,0.1]
[1659292388403,0.07201995,23492.0,23484.0,0.1]
[1659292388650,0.40725733,23488.0,23480.0,0.05]
[1659292388879,0.25738077,23490.0,23483.0,0.42798005]
[1659292389124,0.40725733,23490.0,23483.0,0.83523738]
[1659292389399,0.001,23491.0,23482.0,0.42300228]
[1659292389636,0.001,23491.0,23488.0,0.42300228]
[1659292389866,0.06941908,23495.0,23489.0,0.56823327]
[1659292390093,0.47667641,23495.0,23492.0,0.42300228]
[1659292390359,0.47667641,23495.0,23490.0,0.09894517]
[1659292390360,0.34513657,23494.0,23490.0,0.09894517]
[1659292390590,0.34513657,23494.0,23481.0,0.2998]
[1659292390591,0.40725733,23492.0,23481.0,0.2998]
[1659292390821,0.30475539,23484.0,23481.0,0.2998]
[1659292391063,0.304047,23483.0,23481.0,0.2998]
[1659292391294,0.304047,23483.0,23465.0,0.03146899]
[1659292391295,0.05,23478.0,23465.0,0.03146899]
[1659292391521,0.3,23481.0,23466.0,0.40725733]
[1659292391522,0.05,23471.0,23466.0,0.40725733]
[1659292391756,0.40725733,23477.0,23460.0,0.39]
[1659292391757,0.05,23465.0,23460.0,0.39]
[1659292391987,0.4,23474.0,23462.0,0.42300228]
[1659292391988,0.40725733,23464.0,23462.0,0.42300228]
[1659292392216,0.34816349,23474.0,23463.0,0.3]
[1659292392217,0.12565183,23473.0,23463.0,0.3]
[1659292392459,0.71130433,23472.0,23462.0,0.40725733]
[1659292392700,0.3961,23480.0,23471.0,0.005]
[1659292392701,0.2961,23480.0,23471.0,0.005]
[1659292392929,0.2961,23480.0,23469.0,0.1]
[1659292392930,0.40725733,23477.0,23469.0,0.105]
[1659292393156,0.45864021,23473.0,23463.0,0.40725733]
[1659292393392,0.45864021,23473.0,23460.0,0.39]
[1659292393393,0.71130433,23472.0,23464.0,0.40725733]
[1659292393617,0.42502995,23468.0,23462.0,0.50725733]
[1659292393849,0.75630433,23471.0,23465.0,0.42300228]
[1659292393850,0.40725733,23467.0,23465.0,0.42300228]
[1659292394112,0.04108957,23466.0,23460.0,0.81300228]
[1659292394350,0.40725733,23465.0,23464.0,0.42300228]
[1659292394572,0.70789921,23465.0,23460.0,0.39]
[1659292394799,0.40385221,23465.0,23464.0,0.42300228]
[1659292395033,0.40385221,23465.0,23461.0,0.015]
[1659292395275,0.41746122,23471.0,23464.0,0.43300228]
[1659292395276,0.40725733,23471.0,23464.0,0.43300228]
[1659292395511,0.40725733,23471.0,23468.0,0.41800228]
[1659292395763,0.40725733,23471.0,23470.0,0.41800228]
[1659292396206,0.71130433,23471.0,23470.0,0.41800228]
[1659292396445,0.00699962,23473.0,23472.0,0.015]
[1659292396709,0.00699962,23473.0,23472.0,0.68858628]
[1659292396949,0.00699962,23473.0,23472.0,0.41800228]
[1659292396950,0.87966029,23473.0,23472.0,0.41800228]
[1659292397187,0.7523939,23473.0,23469.0,0.41800228]
[1659292397426,0.7523939,23473.0,23462.0,0.1]
[1659292397427,0.40725733,23470.0,23464.0,0.41800228]
[1659292397660,0.40725733,23467.0,23464.0,0.41800228]
[1659292397885,0.44206732,23465.0,23464.0,0.41800228]
[1659292398113,0.71130433,23465.0,23464.0,0.41800228]
[1659292398345,0.71130433,23465.0,23450.0,0.2865]
[1659292398346,0.035,23461.0,23455.0,0.41800228]
[1659292398573,0.40725733,23460.0,23455.0,0.41800228]
[1659292398807,0.304047,23459.0,23455.0,0.41800228]
[1659292399045,0.71130433,23458.0,23451.0,0.41800228]
[1659292399306,0.05806668,23463.0,23449.0,0.41800228]
[1659292399307,0.035,23455.0,23449.0,0.41800228]
[1659292399563,0.035,23455.0,23445.0,0.41800228]
[1659292399564,0.49033733,23452.0,23445.0,0.41800228]
[1659292399796,0.49033733,23452.0,23442.0,0.41800228]
[1659292399797,0.035,23446.0,23442.0,0.41800228]
[1659292400044,0.40725733,23443.0,23441.0,0.015]
[1659292400284,0.40725733,23443.0,23442.0,0.41800228]
[1659292400285,0.2077,23443.0,23442.0,0.41800228]
[1659292400512,0.2077,23443.0,23441.0,0.01531556]
[1659292400513,0.69803733,23443.0,23441.0,0.015]
[1659292400742,0.69803733,23443.0,23440.0,0.41910228]
[1659292400743,0.71130433,23442.0,23440.0,0.0011]
[1659292400983,0.71130433,23441.0,23440.0,0.0011]
[1659292401227,0.71130433,23441.0,23431.0,0.015]
[1659292401228,1.09344245,23441.0,23431.0,0.015]
[1659292401459,1.09344245,23441.0,23432.0,0.41800228]
[1659292401460,0.49033733,23436.0,23432.0,0.41800228]
[1659292401691,0.0526,23433.0,23432.0,0.41800228]
[1659292401952,0.08308,23431.0,23426.0,0.015]
[1659292402183,0.29078,23431.0,23430.0,0.34992228]
[1659292402421,0.69803733,23431.0,23430.0,0.015]
[1659292402661,1.03708433,23431.0,23425.0,0.33492228]
[1659292402893,0.71118652,23430.0,23426.0,0.33492228]
[1659292403171,0.71130433,23429.0,23426.0,0.33492228]
[1659292403403,0.71130433,23429.0,23422.0,0.006703]
[1659292403404,0.304155,23428.0,23427.0,1.35717961]
[1659292403636,0.16616,23429.0,23427.0,1.35717961]
[1659292403637,0.16616,23429.0,23428.0,0.065]
[1659292403638,0.29078,23429.0,23428.0,0.065]
[1659292403866,0.29078,23429.0,23427.0,0.33492228]
[1659292403867,0.69803733,23429.0,23427.0,0.33492228]
[1659292404100,0.71141233,23428.0,23422.0,0.006703]
[1659292404332,2.57006439,23429.0,23422.0,0.006703]
[1659292404333,0.83603233,23427.0,23422.0,0.006703]
[1659292404582,0.79449233,23426.0,23422.0,0.006703]
[1659292404845,0.34524457,23425.0,23423.0,0.42225733]
[1659292405084,0.34524457,23425.0,23424.0,0.80725733]
[1659292405085,0.03618,23425.0,23424.0,0.80725733]
[1659292405323,0.03618,23425.0,23424.0,0.671353]
[1659292405557,0.03618,23425.0,23424.0,1.12861033]
[1659292405558,0.11926,23425.0,23424.0,1.12861033]
[1659292405788,0.00657914,23430.0,23425.0,0.0469]
[1659292406023,0.00329914,23430.0,23429.0,0.20652]
[1659292406279,0.00329914,23430.0,23429.0,0.60877733]
[1659292406505,0.00310035,23430.0,23429.0,0.85877733]
[1659292406741,0.04418992,23430.0,23420.0,0.49713561]
[1659292406974,0.00977097,23425.0,23424.0,0.1]
[1659292407212,0.00977097,23425.0,23424.0,0.80725733]
[1659292407449,0.05,23436.0,23424.0,0.80725733]
[1659292407680,0.00286439,23434.0,23425.0,0.40725733]
[1659292407910,0.00286439,23432.0,23426.0,0.3]
[1659292408149,0.0032222,23429.0,23427.0,0.40725733]
[1659292408421,4.28758723,23437.0,23429.0,0.1]
[1659292408668,4.20450723,23437.0,23430.0,0.40725733]
[1659292408898,0.25786178,23444.0,23431.0,0.3]
[1659292408899,0.00286439,23439.0,23431.0,0.3]
[1659292409127,0.00286439,23442.0,23432.0,0.40725733]
[1659292409367,0.00286439,23439.0,23433.0,0.4]
[1659292409625,4.28758723,23443.0,23437.0,0.40725733]
[1659292409847,4.28758723,23443.0,23438.0,0.40725733]
[1659292410067,4.28758723,23443.0,23439.0,0.40725733]
[1659292410305,4.28758723,23443.0,23433.0,0.185]
[1659292410306,4.20450723,23443.0,23440.0,0.40725733]
[1659292410548,4.20450723,23443.0,23437.0,0.1]
[1659292410549,4.20450723,23448.0,23442.0,0.40725733]
[1659292410769,0.40725733,23447.0,23438.0,0.40725733]
[1659292411010,0.40725733,23447.0,23437.0,0.1]
[1659292411011,0.05,23444.0,23437.0,0.1]
[1659292411231,0.79449033,23443.0,23432.0,0.1]
[1659292411476,0.08308,23443.0,23432.0,0.1]
[1659292411703,0.08308,23443.0,23421.0,1.644286]
[1659292411704,0.65,23435.0,23434.0,0.20861328]
[1659292411927,0.39810696,23435.0,23423.0,0.506652]
[1659292412201,0.17416957,23435.0,23423.0,0.1]
[1659292412472,0.00286439,23427.0,23423.0,0.1]
[1659292412732,0.17416957,23435.0,23416.0,0.19555429]
[1659292412733,0.05,23424.0,23416.0,0.19555429]
[1659292412960,0.05,23424.0,23415.0,0.3042]
[1659292412961,0.00286439,23423.0,23415.0,0.410888]
[1659292413195,0.08308,23424.0,23412.0,0.21555698]
[1659292413196,0.00286439,23417.0,23412.0,0.0022]
[1659292413476,0.05286439,23421.0,23416.0,0.45]
[1659292413719,0.05,23426.0,23414.0,0.0011]
[1659292413938,0.05255655,23426.0,23414.0,0.0011]
[1659292414170,0.11498,23428.0,23416.0,0.1]
[1659292414171,0.49033733,23425.0,23416.0,0.1]
[1659292414397,0.40725733,23424.0,23416.0,0.50725733]
[1659292414614,0.40725733,23424.0,23416.0,0.1]
[1659292414615,0.05,23417.0,23416.0,0.1]
[1659292414904,0.04108957,23418.0,23416.0,0.1]
[1659292415148,0.40725733,23424.0,23416.0,0.1]
[1659292415600,0.11499,23425.0,23416.0,0.50725733]
[1659292415601,0.00286439,23422.0,23416.0,0.50725733]
[1659292415823,0.08308,23425.0,23418.0,0.40725733]
[1659292416098,0.08308,23425.0,23420.0,0.106665]
[1659292416356,0.08308,23425.0,23418.0,0.40225733]
[1659292416357,0.40725733,23425.0,23418.0,0.40225733]
[1659292416598,0.00286439,23421.0,23419.0,0.40725733]
[1659292416824,0.49033733,23425.0,23417.0,0.4421]
[1659292417064,0.00286439,23421.0,23416.0,0.1]
[1659292417285,0.40725733,23421.0,23416.0,0.1]
[1659292417508,0.00286439,23420.0,23416.0,0.50725733]
[1659292417730,0.40725733,23423.0,23417.0,0.00024782]
[1659292417961,0.49033733,23423.0,23417.0,0.44234782]
[1659292418404,0.00286439,23418.0,23416.0,0.095]
[1659292418667,0.00286439,23418.0,23414.0,0.0011]
[1659292418668,0.00641641,23417.0,23414.0,0.0011]
[1659292418899,0.66828312,23418.0,23412.0,0.4421]
[1659292419130,0.74849873,23418.0,23412.0,0.006705]
[1659292419360,0.08308,23418.0,23413.0,0.40725733]
[1659292419838,0.04221376,23431.0,23413.0,0.40725733]
[1659292419839,0.00286439,23432.0,23418.0,0.4421]
[1659292420071,0.00286439,23432.0,23417.0,0.45725733]
[1659292420072,0.49033733,23431.0,23428.0,0.1]
[1659292420316,0.49320172,23431.0,23429.0,0.00225187]
[1659292420536,0.304153,23430.0,23429.0,0.40725733]
[1659292420757,0.08308,23431.0,23429.0,0.75725733]
[1659292420982,0.00286439,23431.0,23430.0,0.84935733]
[1659292421251,0.00286439,23431.0,23428.0,0.1]
[1659292421485,0.25792121,23439.0,23429.0,0.40725733]
[1659292421486,0.30792121,23439.0,23429.0,0.40725733]
[1659292421712,0.40725733,23430.0,23428.0,0.1]
[1659292421932,0.40725733,23435.0,23428.0,0.5421]
[1659292422156,0.30792121,23439.0,23429.0,0.7421]
[1659292422157,0.40725733,23438.0,23429.0,0.7421]
[1659292422387,0.40725733,23438.0,23429.0,0.84935733]
[1659292422611,0.40725733,23438.0,23431.0,0.4421]
[1659292422846,0.25792121,23439.0,23432.0,1.14935733]
[1659292423069,0.71141033,23438.0,23432.0,0.4421]
[1659292423302,0.304153,23437.0,23432.0,0.4421]
[1659292423527,0.00286439,23433.0,23432.0,0.4421]
[1659292423779,0.00286439,23433.0,23432.0,1.14935733]
[1659292424003,4.20450723,23448.0,23433.0,0.00285561]
[1659292424240,4.20450723,23448.0,23435.0,0.84935733]
[1659292424471,0.71141033,23447.0,23437.0,0.4421]
[1659292424728,0.08308,23448.0,23438.0,0.70725733]
[1659292424964,0.08308,23448.0,23443.0,0.4271]
[1659292425195,4.27272875,23454.0,23442.0,0.50725733]
[1659292425196,0.08195304,23459.0,23446.0,1.1771]
[1659292425435,4.61176456,23458.0,23448.0,0.4271]
[1659292425689,0.001,23455.0,23449.0,0.7271]
[1659292425928,0.001,23455.0,23449.0,1.18435733]
[1659292426169,0.001,23455.0,23446.0,0.213076]
[1659292426170,0.001,23455.0,23451.0,0.4271]
[1659292426409,0.001,23455.0,23453.0,0.4271]
[1659292426645,0.001,23455.0,23445.0,0.5]
[1659292426876,0.001,23455.0,23449.0,0.1]
[1659292427105,0.001,23455.0,23449.0,0.50725733]
[1659292427347,1.14828433,23466.0,23450.0,0.70725733]
[1659292427348,0.03185,23465.0,23450.0,0.70725733]
[1659292427662,0.40725733,23464.0,23456.0,0.1]
[1659292427883,3.66e-06,23458.0,23457.0,0.4421]
[1659292428103,3.66e-06,23458.0,23457.0,1.24435733]
[1659292428332,0.74109323,23458.0,23456.0,0.1]
[1659292428555,0.04109323,23458.0,23450.0,0.21127081]
[1659292428769,3.66e-06,23458.0,23451.0,0.84935733]
[1659292428994,0.04500366,23466.0,23455.0,0.84935733]
[1659292429219,0.25760788,23468.0,23451.0,0.14989826]
[1659292429220,0.03184,23474.0,23463.0,0.00499634]
[1659292429432,0.40725733,23473.0,23463.0,0.00499634]
[1659292429663,0.335993,23472.0,23463.0,0.00499634]
[1659292429884,0.71141033,23471.0,23463.0,0.00459096]
[1659292430091,0.00257859,23464.0,23463.0,0.4421]
[1659292430316,0.00046424,23464.0,23463.0,0.40725733]
[1659292430547,0.00117218,23465.0,23464.0,0.59813026]
[1659292430775,0.00117218,23465.0,23461.0,0.1]
[1659292430989,0.00117218,23465.0,23462.0,0.40725733]
[1659292431217,0.00117218,23465.0,23455.0,0.3]
[1659292431218,0.05,23462.0,23451.0,0.04338126]
[1659292431486,0.55983531,23471.0,23455.0,0.40725733]
[1659292431487,0.45725733,23471.0,23455.0,0.40725733]
[1659292431703,0.41349595,23475.0,23462.0,0.40725733]
[1659292431704,0.304153,23470.0,23462.0,0.40725733]
[1659292431922,0.75545733,23475.0,23463.0,0.40725733]
[1659292432163,0.05,23467.0,23456.0,0.40725733]
[1659292432374,0.45725733,23467.0,23456.0,0.40725733]
[1659292432594,0.05,23464.0,23457.0,0.1]
[1659292432845,0.40725733,23465.0,23457.0,0.1]
[1659292433314,0.304153,23464.0,23457.0,0.1]
[1659292433544,0.39576957,23463.0,23453.0,0.1]
[1659292433752,0.304153,23462.0,23453.0,0.1]
[1659292434036,0.03186,23461.0,23453.0,0.1]
[1659292434483,0.336013,23461.0,23453.0,0.1]
[1659292434706,0.304153,23460.0,23453.0,0.1]
[1659292434931,0.336013,23462.0,23457.0,0.0998]
[1659292435152,0.03185,23464.0,23457.0,0.1498]
[1659292435878,0.03185,23464.0,23459.0,0.05]
[1659292436086,0.28944141,23469.0,23459.0,0.45725733]
[1659292436314,0.40725733,23468.0,23459.0,0.45725733]
[1659292436559,0.40725733,23468.0,23461.0,1.05]
[1659292436796,0.05,23479.0,23461.0,1.05]
[1659292436797,0.001177,23481.0,23472.0,0.05]
[1659292437018,0.43908733,23479.0,23466.0,0.35]
[1659292437233,0.40725733,23478.0,23467.0,0.40725733]
[1659292437457,0.03184,23477.0,23467.0,0.40725733]
[1659292437678,0.40725733,23476.0,23467.0,0.40725733]
[1659292437907,0.40725733,23476.0,23468.0,0.35]
[1659292438115,0.40725733,23477.0,23471.0,0.05]
[1659292438349,0.30475539,23484.0,23471.0,0.05]
[1659292438350,0.001,23489.0,23474.0,0.40725733]
[1659292438567,0.001,23489.0,23468.0,0.3]
[1659292438568,0.001,23489.0,23481.0,0.40725733]
[1659292438795,0.001,23489.0,23482.0,1.00725733]
[1659292438796,0.03308,23487.0,23482.0,1.00725733]
[1659292439007,0.001,23489.0,23483.0,0.40725733]
[1659292439261,0.001,23489.0,23484.0,0.3]
[1659292439520,0.001,23489.0,23485.0,0.40725733]
[1659292439745,0.002,23493.0,23485.0,0.40725733]
[1659292439746,0.002,23493.0,23487.0,0.40725733]
[1659292439954,0.002,23493.0,23489.0,0.40725733]
[1659292440198,0.04341908,23495.0,23492.0,1.0]
[1659292440418,0.079,23499.0,23492.0,1.0]
[1659292440419,0.079,23499.0,23493.0,0.70725733]
[1659292440712,0.07908,23501.0,23497.0,0.05]
[1659292440939,0.07908,23501.0,23499.0,0.40725733]
[1659292441167,0.07908,23501.0,23495.0,1.0221]
[1659292441168,0.06673972,23501.0,23495.0,1.0221]
[1659292441395,0.001,23503.0,23495.0,0.1]
[1659292441633,0.001,23503.0,23495.0,0.15]
[1659292441863,0.06804968,23508.0,23505.0,0.05]
[1659292442083,0.06804968,23508.0,23498.0,0.9665]
[1659292442325,0.03179,23507.0,23499.0,0.3]
[1659292442555,0.10112968,23508.0,23507.0,0.05]
[1659292442556,4.968e-05,23508.0,23507.0,0.05]
[1659292442773,4.968e-05,23508.0,23507.0,1.05024004]
[1659292443027,4.968e-05,23508.0,23507.0,1.10024004]
[1659292443204,4.968e-05,23508.0,23507.0,1.30024004]
[1659292443460,4.968e-05,23508.0,23507.0,1.36931029]
[1659292443691,0.06668028,23521.0,23512.0,1.0]
[1659292443914,2.8e-07,23521.0,23520.0,0.05]
[1659292444137,2.8e-07,23521.0,23517.0,0.0944655]
[1659292444366,0.15,23519.0,23518.0,0.5490791]
[1659292444595,0.23308,23519.0,23518.0,0.90679688]
[1659292444816,0.23308,23519.0,23518.0,0.7990791]
[1659292445038,0.23308,23519.0,23518.0,0.90541553]
[1659292445256,2.8e-07,23521.0,23518.0,0.90541553]
[1659292445257,0.03177,23528.0,23521.0,0.86553865]
[1659292445486,0.08708,23530.0,23521.0,2.06893598]
[1659292445774,0.01,23532.0,23526.0,0.65]
[1659292445997,0.08308,23530.0,23525.0,1.0665]
[1659292446208,0.08308,23530.0,23528.0,0.40679688]
[1659292446426,0.08308,23530.0,23526.0,0.40679688]
[1659292446643,0.001,23530.0,23527.0,0.29953955]
[1659292446869,0.05,23539.0,23528.0,0.40679688]
[1659292447124,0.05,23539.0,23530.0,0.1]
[1659292447125,0.05,23537.0,23530.0,0.1]
[1659292447338,0.05,23537.0,23531.0,0.40579688]
[1659292447581,0.05,23537.0,23532.0,0.40725733]
[1659292447582,0.03308,23537.0,23532.0,0.40725733]
[1659292447798,0.01211709,23537.0,23535.0,0.40725733]
[1659292448019,0.06668028,23546.0,23536.0,0.40679688]
[1659292448265,0.19130028,23546.0,23537.0,0.70679688]
[1659292448488,0.19130028,23546.0,23538.0,0.40679688]
[1659292448489,0.22438028,23546.0,23538.0,0.40679688]
[1659292448707,0.22438028,23546.0,23539.0,0.40725733]
[1659292448934,0.19130028,23546.0,23540.0,0.40679688]
[1659292449172,0.27438028,23546.0,23540.0,0.40633763]
[1659292449394,0.35746028,23546.0,23540.0,0.40587838]
[1659292449642,0.35746028,23546.0,23541.0,0.40725733]
[1659292449856,0.19130028,23546.0,23541.0,0.40679808]
[1659292450078,0.06668028,23546.0,23544.0,0.40725733]
[1659292450304,0.03402484,23557.0,23546.0,1.0]
[1659292450537,0.00052705,23568.0,23546.0,1.0]
[1659292450538,0.2077,23556.0,23551.0,0.5421]
[1659292450784,0.05,23567.0,23555.0,0.85725733]
[1659292451040,0.40725733,23566.0,23555.0,0.57360002]
[1659292451256,0.03172,23565.0,23555.0,0.11546463]
[1659292451474,0.05,23564.0,23558.0,0.40725733]
[1659292451694,0.05,23564.0,23555.0,0.11546463]
[1659292451695,0.04869858,23556.0,23555.0,0.11546463]
[1659292451916,0.12462,23564.0,23555.0,0.34023389]
[1659292452140,0.12462,23564.0,23557.0,0.22539292]
[1659292452362,0.12462,23564.0,23559.0,0.22519165]
[1659292452603,0.12462,23564.0,23560.0,0.22491813]
[1659292452828,0.04275,23563.0,23562.0,0.22467905]
[1659292453043,0.04275,23563.0,23548.0,0.04054494]
[1659292453044,0.05,23556.0,23551.0,0.1]
[1659292453326,0.05,23553.0,23551.0,0.1]
[1659292453474,0.05,23553.0,23551.0,0.32683986]
[1659292453700,1.08195391,23561.0,23552.0,0.27448689]
[1659292453701,0.53195391,23561.0,23552.0,0.27448689]
[1659292453921,0.05,23559.0,23553.0,0.22681728]
[1659292454167,0.05,23559.0,23551.0,0.1]
[1659292454168,0.05,23555.0,23551.0,0.1]
[1659292454388,0.40725733,23553.0,23537.0,0.1]
[1659292454603,0.40725733,23553.0,23530.0,1.06868045]
[1659292454604,0.020113,23531.0,23521.0,0.9665]
[1659292454854,0.020113,23531.0,23519.0,0.01269305]
[1659292454855,0.020113,23545.0,23527.0,0.029887]
[1659292455076,0.335893,23544.0,23539.0,0.4123001]
[1659292455291,0.335893,23544.0,23528.0,0.029887]
[1659292455292,0.06034705,23544.0,23528.0,0.029887]
[1659292455509,0.06034705,23544.0,23539.0,0.029887]
[1659292455744,0.06034705,23544.0,23543.0,0.02973877]
[1659292455745,0.02860705,23544.0,23543.0,0.02973877]
[1659292456057,0.03174,23551.0,23537.0,0.1]
[1659292456308,0.002,23568.0,23545.0,0.00880609]
[1659292456309,0.53135391,23561.0,23545.0,0.00880609]
[1659292456540,0.40725733,23560.0,23549.0,0.20988973]
[1659292456772,0.53135391,23561.0,23555.0,0.02973877]
[1659292456773,0.37812906,23561.0,23555.0,0.02973877]
[1659292457009,0.37812906,23561.0,23545.0,0.38174]
[1659292457010,0.37812906,23561.0,23556.0,0.20975728]
[1659292457266,0.002,23568.0,23567.0,0.02973877]
[1659292457496,0.001,23568.0,23567.0,0.27406012]
[1659292457725,0.001,23575.0,23567.0,0.27406012]
[1659292457968,0.43895733,23574.0,23565.0,0.12973877]
[1659292458205,0.43895733,23574.0,23560.0,0.1]
[1659292458206,0.06301123,23564.0,23563.0,0.23735645]
[1659292458448,0.78668218,23564.0,23551.0,0.3]
[1659292458716,0.03171,23571.0,23557.0,0.20897838]
[1659292458948,0.03171,23571.0,23556.0,0.02973877]
[1659292458949,0.40725733,23571.0,23561.0,0.23773696]
[1659292459187,0.03171,23573.0,23562.0,0.21491007]
[1659292459428,0.02026123,23574.0,23564.0,0.40725733]
[1659292459663,0.0327,23575.0,23574.0,1.02973877]
[1659292459664,0.001,23575.0,23574.0,1.02973877]
[1659292459902,0.001,23577.0,23574.0,1.02973877]
[1659292459903,0.001,23577.0,23574.0,1.4869961]
[1659292460137,0.30317538,23585.0,23576.0,0.02973877]
[1659292460371,0.30317538,23585.0,23563.0,0.02973877]
[1659292460372,0.02026123,23579.0,23563.0,0.02973877]
[1659292460597,0.42251856,23575.0,23565.0,0.24530978]
[1659292460824,0.98246668,23578.0,23565.0,0.24530978]
[1659292460825,0.01526123,23568.0,23565.0,0.24530978]
[1659292461112,2.95076668,23578.0,23549.0,0.03473877]
[1659292461113,0.01526123,23562.0,23549.0,0.1]
[1659292461343,0.43897733,23561.0,23549.0,0.50725733]
[1659292461575,0.43897733,23561.0,23544.0,0.03473877]
[1659292461576,0.40725733,23555.0,23544.0,0.03473877]
[1659292461815,0.37038142,23560.0,23548.0,0.08492]
[1659292461816,0.40725733,23550.0,23548.0,0.08492]
[1659292462053,0.73809433,23549.0,23548.0,0.08492]
[1659292462280,0.77276749,23549.0,23548.0,0.08492]
[1659292462542,0.47367049,23549.0,23548.0,0.08492]
[1659292462793,0.01526123,23545.0,23544.0,0.08492]
[1659292463026,0.74309433,23545.0,23544.0,0.08492]
[1659292463258,0.77856934,23545.0,23544.0,0.08492]
[1659292463746,0.74309433,23545.0,23544.0,0.07884923]
[1659292463982,0.74309433,23545.0,23529.0,0.0022]
[1659292463983,0.01526123,23539.0,23529.0,0.0022]
[1659292464220,0.07884,23544.0,23529.0,0.0022]
[1659292464221,0.40725733,23534.0,23530.0,0.16995]
[1659292464456,0.37053016,23533.0,23530.0,0.16995]
[1659292464683,0.40725733,23532.0,23530.0,0.16995]
[1659292464917,0.03175,23540.0,23530.0,0.16995]
[1659292465159,0.40725733,23539.0,23532.0,0.03473877]